bitfinex-derivatives/quotes_SOLF0:USTF0_20240910
["timestamp","ask_amount","ask_price","bid_price","bid_amount"]
[1725977875829,7.438,134.37,134.33,22.92]
[1725977876034,7.438,134.37,134.35,3.7214]
[1725977876233,8.7568,134.38,134.35,3.7214]
[1725977876428,8.7568,134.38,134.33,22.92]
[1725977876930,8.7568,134.38,134.31,22.92]
[1725977877137,1.2924,134.37,134.29,22.92]
[1725977877326,1.2924,134.37,134.31,22.92]
[1725977877531,1.2924,134.37,134.32,3.722]
[1725977877928,8.7304,134.37,134.32,3.67367191]
[1725977878533,8.7304,134.37,134.33,3.7217]
[1725977878734,7.438,134.37,134.32,3.67367191]
[1725977878934,1.3188,134.38,134.32,3.67367191]
[1725977879133,1.3188,134.38,134.33,22.92]
[1725977879134,7.438,134.37,134.33,22.92]
[1725977879331,7.438,134.37,134.33,26.72613688]
[1725977879749,7.438,134.37,134.35,3.7214]
[1725977880135,8.7568,134.38,134.35,3.7214]
[1725977880333,10.0898,134.41,134.36,22.92]
[1725977880532,10.0898,134.41,134.33,26.72613688]
[1725977880837,3.7209,134.37,134.33,22.92]
[1725977881032,3.7209,134.37,134.26,22.92]
[1725977881033,10.0898,134.41,134.29,22.92]
[1725977881237,26.62894466,134.4,134.29,22.92]
[1725977881438,26.62894466,134.4,134.31,22.92]
[1725977881439,3.70894466,134.4,134.31,22.92]
[1725977881628,1.3059,134.39,134.31,22.92]
[1725977881942,5.0263,134.39,134.35,3.7213]
[1725977882329,1.3059,134.39,134.34,22.92]
[1725977882531,1.3059,134.39,134.31,3.75120723]
[1725977882532,1.3059,134.39,134.32,22.92]
[1725977883041,1.3059,134.39,134.29,26.60493938]
[1725977883242,1.3059,134.39,134.29,22.92]
[1725977883541,3.7221,134.33,134.27,22.92]
[1725977883932,3.7221,134.33,134.29,3.7228]
[1725977884132,1.3059,134.39,134.29,3.74227224]
[1725977884335,3.7217,134.34,134.27,22.92]
[1725977884837,3.7215,134.35,134.29,22.92]
[1725977885034,1.3059,134.39,134.32,3.7222]
[1725977885234,3.7211,134.36,134.29,22.92]
[1725977885446,1.3059,134.39,134.29,22.92]
[1725977885640,1.3059,134.39,134.29,7.46591038]
[1725977885842,3.7214,134.35,134.26,22.92]
[1725977886146,1.3059,134.39,134.27,26.6435]
[1725977886147,30.358,134.38,134.27,26.6435]
[1725977886353,3.7226,134.31,134.27,3.7235]
[1725977887841,3.7223,134.32,134.28,3.7233]
[1725977888149,1.3825,134.33,134.25,22.92]
[1725977888446,1.2991,134.32,134.25,22.92]
[1725977888651,1.2991,134.32,134.17,3.65075227]
[1725977888834,3.7232,134.29,134.17,3.65075227]
[1725977889039,1.2991,134.32,134.23,22.92]
[1725977889348,3.7241,134.26,134.21,26.6452]
[1725977889647,1.2991,134.32,134.21,22.92]
[1725977890439,3.7238,134.27,134.22,3.7248]
[1725977890745,3.7238,134.27,134.21,22.92]
[1725977890940,1.2991,134.32,134.21,22.92]
[1725977891142,1.2991,134.32,134.24,3.7242]
[1725977891345,1.2991,134.32,134.21,22.92]
[1725977891742,3.7241,134.26,134.22,3.725]
[1725977891944,7.438,134.31,134.21,22.92]
[1725977892241,3.7232,134.29,134.24,22.92]
[1725977892447,7.438,134.31,134.24,26.56706759]
[1725977893539,7.438,134.31,134.26,22.92]
[1725977893835,1.3825,134.33,134.26,22.92]
[1725977893836,1.3825,134.33,134.28,22.92]
[1725977894239,7.438,134.32,134.28,22.92]
[1725977894645,7.438,134.32,134.3,3.7225]
[1725977894837,7.438,134.32,134.28,26.59131043]
[1725977895238,11.1604,134.32,134.28,30.31451043]
[1725977895439,7.438,134.32,134.26,22.92]
[1725977895646,7.438,134.32,134.26,26.61701259]
[1725977896047,7.438,134.32,134.26,22.92]
[1725977896349,1.3825,134.33,134.25,7.49215912]
[1725977896657,1.3825,134.33,134.24,22.92]
[1725977896845,7.438,134.31,134.24,26.66320196]
[1725977897543,11.1607,134.31,134.26,3.7239]
[1725977897740,11.1607,134.31,134.24,22.92]
[1725977897741,7.438,134.31,134.24,22.92]
[1725977897940,7.438,134.32,134.24,22.92]
[1725977899038,7.438,134.32,134.17,3.65075227]
[1725977899248,7.438,134.32,134.21,22.92]
[1725977899450,7.438,134.32,134.22,3.63870918]
[1725977899954,7.438,134.32,134.21,22.92]
[1725977899955,30.358,134.31,134.21,22.92]
[1725977900139,30.358,134.29,134.18,3.71693696]
[1725977900345,1.287,134.28,134.18,3.71693696]
[1725977900647,1.287,134.28,134.17,22.92]
[1725977900843,2.693,134.27,134.17,26.57919741]
[1725977901045,3.7246,134.24,134.2,3.7253]
[1725977901250,2.693,134.27,134.17,26.57919741]
[1725977903152,3.7246,134.24,134.17,26.57919741]
[1725977903550,2.693,134.27,134.17,26.57919741]
[1725977903745,3.7244,134.25,134.2,3.7253]
[1725977904061,2.693,134.27,134.17,26.57919741]
[1725977904354,3.7247,134.23,134.19,3.7256]
[1725977904751,2.693,134.27,134.17,26.57919741]
[1725977904954,2.693,134.27,134.18,3.7259]
[1725977905251,2.693,134.27,134.17,26.57919741]
[1725977905859,3.7242,134.25,134.22,3.725]
[1725977906054,3.7242,134.25,134.19,22.92]
[1725977906360,2.693,134.27,134.17,3.65919741]
[1725977906361,6.4168,134.27,134.23,3.7246]
[1725977907051,2.693,134.27,134.21,22.92]
[1725977907451,6.4168,134.27,134.23,3.7245]
[1725977907753,2.693,134.27,134.19,22.92]
[1725977907952,3.7241,134.26,134.21,3.7252]
[1725977908153,2.693,134.27,134.21,3.68088094]
[1725977908358,2.693,134.27,134.19,22.92]
[1725977908951,2.693,134.27,134.19,26.70781614]
[1725977909450,3.7243,134.25,134.21,3.7252]
[1725977909655,2.693,134.27,134.19,3.78781614]
[1725977909857,2.693,134.27,134.17,22.92]
[1725977910659,2.693,134.27,134.19,22.92]
[1725977911050,2.693,134.27,134.22,3.7249]
[1725977911246,2.693,134.27,134.19,22.92]
[1725977911652,2.693,134.27,134.21,3.725]
[1725977911859,2.693,134.27,134.19,22.92]
[1725977912154,2.693,134.27,134.23,3.7247]
[1725977912463,1.3979,134.27,134.21,22.92]
[1725977912651,1.3979,134.27,134.23,3.7245]
[1725977912851,1.3979,134.27,134.21,22.92]
[1725977913055,7.438,134.3,134.21,22.92]
[1725977913247,1.3087,134.31,134.25,22.92]
[1725977913448,7.438,134.33,134.27,22.92]
[1725977913968,7.438,134.33,134.29,3.7228]
[1725977914460,7.438,134.33,134.3,3.7228]
[1725977914850,7.438,134.33,134.27,22.92]
[1725977915252,1.3087,134.36,134.28,3.72886405]
[1725977915762,1.3087,134.36,134.27,22.92]
[1725977915952,1.3087,134.36,134.26,3.72029795]
[1725977916152,7.438,134.34,134.25,22.92]
[1725977916358,1.4029,134.33,134.25,26.644]
[1725977916559,1.4029,134.33,134.25,22.92]
[1725977916759,1.4029,134.33,134.25,26.56729981]
[1725977916968,1.4029,134.33,134.23,22.92]
[1725977917253,1.3768,134.32,134.25,22.92]
[1725977917455,1.3768,134.32,134.26,3.63870918]
[1725977917650,1.3768,134.32,134.27,3.7234]
[1725977917854,1.3768,134.32,134.25,22.92]
[1725977918258,1.3768,134.32,134.26,3.7237]
[1725977918482,8.7467,134.36,134.25,26.65109246]
[1725977918662,8.7467,134.36,134.27,22.92]
[1725977918857,8.7467,134.36,134.29,3.7228]
[1725977919156,1.3087,134.36,134.29,22.92]
[1725977920561,1.3087,134.36,134.29,3.723]
[1725977920955,1.3087,134.36,134.29,22.92]
[1725977921150,1.3087,134.36,134.31,3.7223]
[1725977922264,1.3087,134.36,134.3,3.7227]
[1725977922758,1.3087,134.36,134.27,22.92]
[1725977923065,1.3087,134.36,134.28,3.7231]
[1725977923257,1.3087,134.36,134.28,3.67133387]
[1725977923564,1.3087,134.36,134.27,22.92]
[1725977923763,1.3087,134.36,134.29,22.92]
[1725977924166,1.3768,134.39,134.32,22.92]
[1725977924472,1.3503,134.42,134.34,22.92]
[1725977924863,1.3503,134.42,134.36,22.92]
[1725977925057,22.92,134.47,134.36,22.92]
[1725977925255,7.451,134.45,134.36,22.92]
[1725977925657,22.92,134.43,134.32,22.92]
[1725977925863,22.92,134.43,134.32,26.59831528]
[1725977925864,1.3656,134.42,134.32,26.59831528]
[1725977926864,1.3656,134.42,134.34,26.6414]
[1725977927260,1.3656,134.42,134.34,22.92]
[1725977928660,1.3656,134.42,134.32,22.92]
[1725977929461,1.3656,134.42,134.34,3.7216]
[1725977930165,1.3656,134.42,134.35,3.7213]
[1725977930366,1.3656,134.42,134.34,22.92]
[1725977930864,8.8166,134.42,134.32,22.92]
[1725977931061,22.92,134.41,134.32,3.7221]
[1725977931265,7.451,134.4,134.26,22.92]
[1725977931459,8.7321,134.4,134.26,22.92]
[1725977931658,1.3665,134.39,134.31,3.7224]
[1725977931862,1.3665,134.39,134.29,3.72700871]
[1725977932062,1.3665,134.39,134.3,22.92]
[1725977932461,1.3665,134.39,134.32,3.722]
[1725977932669,1.3665,134.39,134.3,22.92]
[1725977934265,1.3665,134.39,134.33,3.7218]
[1725977934459,7.451,134.42,134.34,22.92]
[1725977934868,7.451,134.42,134.32,22.92]
[1725977935358,7.451,134.43,134.33,3.7218]
[1725977935555,7.451,134.41,134.3,22.92]
[1725977935765,1.3742,134.4,134.3,26.55718465]
[1725977935966,10.2296,134.4,134.31,3.7222]
[1725977936273,10.2296,134.4,134.3,26.55718465]
[1725977936274,31.6725,134.39,134.3,26.55718465]
[1725977936769,31.6725,134.39,134.31,3.7224]
[1725977937469,31.6725,134.39,134.3,26.55718465]
[1725977937861,31.6725,134.39,134.32,3.7221]
[1725977938869,31.6725,134.39,134.3,26.55718465]
[1725977939459,31.6725,134.39,134.32,3.7222]
[1725977939660,31.6725,134.39,134.3,26.55718465]
[1725977939860,31.6725,134.39,134.3,3.63718465]
[1725977940060,31.6725,134.39,134.31,3.7224]
[1725977940265,31.6725,134.39,134.31,3.78975199]
[1725977940466,31.6725,134.39,134.28,22.92]
[1725977940671,7.451,134.36,134.28,26.6442124]
[1725977940863,7.451,134.36,134.25,22.92]
[1725977941064,7.451,134.36,134.25,26.61516645]
[1725977941265,7.451,134.36,134.28,3.7231]
[1725977941468,7.451,134.36,134.28,22.92]
[1725977941865,7.451,134.38,134.26,22.92]
[1725977942069,7.451,134.34,134.23,22.92]
[1725977942268,1.3092,134.33,134.23,22.92]
[1725977942572,30.371,134.3,134.19,22.92]
[1725977942763,30.371,134.3,134.21,3.7251]
[1725977943075,30.371,134.3,134.21,3.81538828]
[1725977943273,7.451,134.3,134.21,22.92]
[1725977943485,7.451,134.3,134.21,26.69253968]
[1725977943670,8.7926,134.32,134.24,22.92]
[1725977944666,7.451,134.32,134.26,22.92]
[1725977944877,1.3092,134.33,134.26,22.92]
[1725977945078,1.3092,134.33,134.28,22.92]
[1725977945374,1.3092,134.33,134.3,3.7227]
[1725977945577,1.3092,134.33,134.24,22.92]
[1725977946063,1.3092,134.33,134.26,22.92]
[1725977946265,7.451,134.34,134.28,22.92]
[1725977946474,7.451,134.34,134.3,3.7226]
[1725977946670,8.8398,134.37,134.28,22.92]
[1725977946875,8.8398,134.37,134.28,26.67334929]
[1725977947075,8.8398,134.37,134.3,3.7225]
[1725977948078,8.8398,134.37,134.28,26.67334929]
[1725977948574,8.8398,134.37,134.3,22.92]
[1725977948973,1.3888,134.37,134.33,3.7217]
[1725977949282,1.3888,134.37,134.22,7.4497]
[1725977949283,7.451,134.36,134.25,22.92]
[1725977949670,7.451,134.36,134.28,22.92]
[1725977949872,7.451,134.36,134.29,3.76014536]
[1725977950076,7.451,134.36,134.3,22.92]
[1725977950272,1.3888,134.37,134.32,22.92]
[1725977950479,1.3314,134.41,134.32,22.92]
[1725977952273,1.3314,134.41,134.33,3.7219]
[1725977952783,1.3314,134.41,134.34,3.7215]
[1725977953182,1.3314,134.41,134.35,3.7213]
[1725977953776,1.3314,134.41,134.34,3.7215]
[1725977954887,1.3314,134.41,134.32,22.92]
[1725977954888,1.3314,134.41,134.35,3.7213]
[1725977955070,1.3314,134.41,134.32,22.92]
[1725977955278,1.3314,134.41,134.33,3.7219]
[1725977956377,1.3314,134.41,134.32,22.92]
[1725977957183,1.3314,134.41,134.35,3.7214]
[1725977957682,1.3314,134.41,134.34,3.7215]
[1725977958381,1.3972,134.42,134.35,3.7214]
[1725977958979,1.3972,134.42,134.34,22.92]
[1725977959178,1.3972,134.42,134.35,3.81458499]
[1725977959682,1.3972,134.42,134.36,22.92]
[1725977959891,24.224,134.48,134.39,22.92]
[1725977960188,3.8672,134.48,134.39,22.92]
[1725977960592,3.8672,134.48,134.4,3.67424162]
[1725977960889,7.451,134.47,134.4,3.67424162]
[1725977961283,7.451,134.47,134.39,22.92]
[1725977961284,1.2971,134.48,134.41,22.92]
[1725977961590,1.2971,134.48,134.43,22.92]
[1725977961986,1.2971,134.48,134.4,3.75576734]
[1725977962187,1.2971,134.48,134.39,22.92]
[1725977962483,1.2971,134.48,134.42,3.7193]
[1725977962884,1.2971,134.48,134.41,22.92]
[1725977963088,1.2971,134.48,134.41,30.44354852]
[1725977963491,1.2971,134.48,134.41,26.72404852]
[1725977963679,1.2971,134.48,134.42,3.7193]
[1725977963886,1.2971,134.48,134.41,26.72404852]
[1725977964193,1.2971,134.48,134.44,3.7189]
[1725977964488,1.2971,134.48,134.41,26.72404852]
[1725977964689,7.451,134.52,134.41,26.72404852]
[1725977964891,1.3575,134.51,134.44,3.7186]
[1725977965085,1.3575,134.51,134.43,22.92]
[1725977965290,1.3575,134.51,134.46,3.7182]
[1725977965482,1.3575,134.51,134.45,22.92]
[1725977966086,1.3575,134.51,134.46,3.7182]
[1725977967282,1.3575,134.51,134.47,3.718]
[1725977967485,1.3575,134.51,134.48,3.74739583]
[1725977967486,7.451,134.51,134.48,3.74739583]
[1725977967792,7.451,134.51,134.47,22.92]
[1725977968092,7.451,134.51,134.41,3.80404852]
[1725977968093,7.451,134.51,134.45,22.92]
[1725977968293,11.1682,134.51,134.45,22.92]
[1725977968691,3.7175,134.5,134.46,3.69084821]
[1725977968889,11.1685,134.5,134.46,3.69084821]
[1725977969493,3.7176,134.49,134.46,3.69084821]
[1725977970084,1.3894,134.54,134.46,3.69084821]
[1725977970687,1.3894,134.54,134.45,22.92]
[1725977970688,7.451,134.51,134.45,22.92]
[1725977971293,7.451,134.5,134.46,3.68518931]
[1725977971993,3.7176,134.49,134.46,3.68518931]
[1725977972188,7.451,134.5,134.43,22.92]
[1725977972393,7.451,134.53,134.44,3.64120703]
[1725977972593,3.7178,134.48,134.44,3.64120703]
[1725977972994,7.451,134.53,134.43,22.92]
[1725977973292,7.451,134.51,134.41,22.92]
[1725977973500,7.451,134.51,134.32,3.69605654]
[1725977973501,31.6962,134.5,134.32,3.69605654]
[1725977973691,31.6962,134.5,134.25,248.33]
[1725977973692,7.451,134.47,134.37,22.92]
[1725977973886,11.14799672,134.47,134.35,22.92]
[1725977974091,1.3871,134.46,134.35,26.71704623]
[1725977974395,7.451,134.43,134.35,26.71704623]
[1725977974792,3.7199,134.41,134.35,26.71704623]
[1725977975200,3.7202,134.4,134.35,26.71704623]
[1725977975998,1.3729,134.43,134.35,22.92]
[1725977976295,1.3252,134.42,134.33,26.6437606]
[1725977976494,3.7211,134.37,134.33,22.92]
[1725977976694,7.451,134.4,134.3,22.92]
[1725977977299,7.451,134.4,134.24,3.75910924]
[1725977977300,1.3811,134.39,134.28,22.92]
[1725977977487,3.7212,134.36,134.28,22.92]
[1725977977693,3.7212,134.36,134.3,22.92]
[1725977977893,1.3811,134.39,134.28,22.92]
[1725977978506,1.3811,134.39,134.29,3.812714]
[1725977978702,3.7216,134.35,134.29,3.812714]
[1725977979301,1.3811,134.39,134.29,3.812714]
[1725977979705,1.3811,134.39,134.3,3.7227]
[1725977980495,7.451,134.38,134.28,22.92]
[1725977980805,30.371,134.35,134.26,3.71639305]
[1725977981004,30.371,134.35,134.25,3.7239]
[1725977981005,1.2745,134.34,134.25,3.7239]
[1725977981302,10.1023,134.34,134.24,22.92]
[1725977981503,13.91252443,134.34,134.24,26.6443]
[1725977981806,13.76730919,134.34,134.24,26.60921173]
[1725977982106,13.76730919,134.34,134.25,3.7241]
[1725977982401,13.76730919,134.34,134.24,26.60921173]
[1725977983008,10.1023,134.34,134.24,26.60921173]
[1725977983309,10.1023,134.34,134.26,3.7238]
[1725977983900,10.1023,134.34,134.25,3.7241]
[1725977984302,10.1023,134.34,134.24,22.92]
[1725977984506,22.92,134.31,134.2,22.92]
[1725977984716,1.301,134.3,134.2,22.92]
[1725977985609,1.301,134.3,134.2,26.6454]
[1725977986012,1.301,134.3,134.2,22.92]
[1725977986713,8.752,134.3,134.22,22.92]
[1725977987012,7.451,134.3,134.24,22.92]
[1725977987704,7.451,134.33,134.24,26.6443]
[1725977987906,7.451,134.33,134.24,22.92]
[1725977988695,7.451,134.33,134.28,3.7233]
[1725977989206,7.451,134.33,134.26,22.92]
[1725977989811,7.451,134.33,134.28,3.7231]
[1725977990511,7.451,134.33,134.26,26.6436]
[1725977990708,7.451,134.33,134.26,22.92]
[1725977991011,7.451,134.33,134.27,3.71954455]
[1725977991214,7.451,134.33,134.28,22.92]
[1725977991509,7.451,134.33,134.26,22.92]
[1725977991809,7.451,134.33,134.24,22.92]
[1725977992111,7.451,134.33,134.26,3.7237]
[1725977992307,7.451,134.33,134.24,22.92]
[1725977992610,7.451,134.33,134.26,3.7239]
[1725977994213,7.451,134.33,134.27,3.7235]
[1725977994513,7.451,134.33,134.26,22.92]
[1725977994700,7.451,134.33,134.28,3.7231]
[1725977994907,1.2745,134.34,134.28,22.92]
[1725977995312,1.2745,134.34,134.29,3.75456374]
[1725977996414,1.2745,134.34,134.3,3.7226]
[1725977996614,1.2745,134.34,134.29,3.75456374]
[1725977996815,1.2745,134.34,134.29,7.47736374]
[1725977997017,1.2745,134.34,134.29,3.75456374]
[1725977998020,1.2745,134.34,134.28,22.92]
[1725977998216,1.2745,134.34,134.24,22.92]
[1725977998618,1.2745,134.34,134.26,3.7237]
[1725977998923,1.2745,134.34,134.24,22.92]
[1725977999227,1.2745,134.34,134.27,3.7234]
[1725978000020,1.2745,134.34,134.24,22.92]
[1725978000021,1.2745,134.34,134.26,3.7238]
[1725978000521,1.2745,134.34,134.24,22.92]
[1725978000716,1.2745,134.34,134.26,22.92]
[1725978000925,1.2745,134.34,134.27,3.64209385]
[1725978001129,1.2745,134.34,134.28,3.7232]
[1725978001327,1.2745,134.34,134.27,3.64209385]
[1725978001524,1.2745,134.34,134.29,3.7228]
[1725978001925,1.2745,134.34,134.27,3.64209385]
[1725978002122,1.2824,134.37,134.28,22.92]
[1725978002334,1.2824,134.37,134.29,3.69664288]
[1725978002534,7.451,134.37,134.31,22.92]
[1725978002936,7.451,134.37,134.32,3.70073992]
[1725978003232,8.774,134.43,134.34,3.7214]
[1725978003530,8.8289,134.42,134.33,22.92]
[1725978004335,8.8289,134.42,134.35,3.7212]
[1725978004533,8.8289,134.42,134.35,22.92]
[1725978005037,7.451,134.46,134.37,22.92]
[1725978005239,10.1145,134.46,134.37,22.92]
[1725978005733,10.1145,134.46,134.35,22.92]
[1725978006141,228.0,134.52,134.33,22.92]
[1725978006142,7.451,134.45,134.41,22.92]
[1725978006335,3.9195,134.51,134.41,22.92]
[1725978006638,3.9195,134.51,134.42,3.81337988]
[1725978007031,3.9195,134.51,134.41,22.92]
[1725978007032,7.451,134.5,134.41,22.92]
[1725978007435,7.451,134.5,134.42,3.67265377]
[1725978008038,7.451,134.5,134.41,22.92]
[1725978008240,7.451,134.5,134.42,3.6914949]
[1725978008446,7.451,134.5,134.43,3.7191]
[1725978008839,7.451,134.5,134.43,22.92]
[1725978009232,7.451,134.5,134.41,22.92]
[1725978009441,7.451,134.5,134.42,3.66507924]
[1725978009635,7.451,134.5,134.41,22.92]
[1725978009835,7.451,134.5,134.43,22.92]
[1725978010541,7.451,134.5,134.41,26.60926259]
[1725978010744,7.451,134.5,134.41,30.32876259]
[1725978011042,7.451,134.5,134.41,22.92]
[1725978011247,30.371,134.5,134.4,3.7198]
[1725978011449,30.371,134.5,134.39,22.92]
[1725978011943,3.7187,134.45,134.39,22.92]
[1725978012136,30.371,134.5,134.39,22.92]
[1725978012440,7.451,134.47,134.37,22.92]
[1725978012849,3.7194,134.43,134.37,22.92]
[1725978013041,7.451,134.47,134.37,22.92]
[1725978013347,30.371,134.46,134.34,22.92]
[1725978013748,11.171,134.4,134.34,22.92]
[1725978014257,7.451,134.39,134.34,22.92]
[1725978014432,7.451,134.39,134.32,26.63489331]
[1725978014639,7.451,134.39,134.32,22.92]
[1725978015344,7.451,134.42,134.32,26.62664135]
[1725978015550,11.1714,134.39,134.32,26.62664135]
[1725978015846,7.451,134.39,134.32,26.62664135]
[1725978016446,7.451,134.39,134.35,22.92]
[1725978016634,7.451,134.42,134.35,22.92]
[1725978016838,7.451,134.39,134.35,22.92]
[1725978017038,7.451,134.39,134.33,22.92]
[1725978017241,7.451,134.39,134.3,22.92]
[1725978017638,7.451,134.39,134.32,22.92]
[1725978017843,11.1713,134.39,134.32,22.92]
[1725978018145,11.1713,134.39,134.37,22.92]
[1725978018146,7.451,134.39,134.37,22.92]
[1725978018343,7.451,134.39,134.38,3.7206]
[1725978018942,1.335,134.43,134.38,3.7206]
[1725978019252,7.451,134.47,134.39,22.92]
[1725978019741,7.451,134.47,134.4,3.7198]
[1725978019943,7.451,134.46,134.39,22.92]
[1725978020539,7.451,134.46,134.37,22.92]
[1725978020841,7.451,134.45,134.37,22.92]
[1725978021951,7.451,134.47,134.37,26.6407]
[1725978022150,7.451,134.47,134.37,22.92]
[1725978022543,7.451,134.47,134.37,26.6408]
[1725978023352,7.451,134.47,134.37,22.92]
[1725978023744,7.451,134.45,134.35,22.92]
[1725978023945,7.451,134.45,134.36,3.7211]
[1725978024257,7.451,134.45,134.35,22.92]
[1725978025357,7.451,134.43,134.33,22.92]
[1725978025554,30.371,134.41,134.3,22.92]
[1725978025743,30.371,134.39,134.28,22.92]
[1725978026140,30.371,134.39,134.26,22.92]
[1725978026141,30.371,134.37,134.26,22.92]
[1725978026344,7.451,134.37,134.28,22.92]
[1725978026544,7.451,134.37,134.28,26.55302211]
[1725978026748,7.451,134.37,134.3,22.92]
[1725978027147,7.451,134.41,134.3,22.92]
[1725978027646,7.451,134.41,134.32,3.722]
[1725978028452,7.451,134.41,134.32,22.92]
[1725978028652,7.451,134.41,134.34,22.92]
[1725978029150,7.451,134.41,134.34,26.6415]
[1725978029344,7.451,134.41,134.34,22.92]
[1725978029541,7.451,134.41,134.36,22.92]
[1725978029751,7.451,134.41,134.36,26.641]
[1725978030253,7.451,134.41,134.37,3.7208]
[1725978030441,7.451,134.41,134.36,22.92]
[1725978030642,2.6255,134.42,134.36,22.92]
[1725978030643,1.3241,134.42,134.36,22.92]
[1725978030852,7.451,134.45,134.39,3.7201]
[1725978031554,7.451,134.45,134.38,22.92]
[1725978031555,7.451,134.45,134.38,26.72136193]
[1725978032262,7.451,134.45,134.4,3.7198]
[1725978032853,7.451,134.45,134.38,22.92]
[1725978033759,3.7196,134.42,134.38,22.92]
[1725978034155,7.451,134.45,134.38,22.92]
[1725978034457,7.451,134.42,134.38,22.92]
[1725978035157,11.1705,134.42,134.38,22.92]
[1725978035357,7.451,134.42,134.38,22.92]
[1725978035554,7.451,134.45,134.38,22.92]
[1725978035758,7.451,134.45,134.34,22.92]
[1725978035953,1.3848,134.44,134.34,22.92]
[1725978036159,7.451,134.43,134.32,22.92]
[1725978036857,3.7207,134.38,134.32,22.92]
[1725978037357,7.451,134.43,134.32,22.92]
[1725978037559,3.721,134.37,134.32,22.92]
[1725978037859,24.3048,134.44,134.28,26.55302211]
[1725978037860,30.371,134.42,134.3,22.92]
[1725978038052,30.371,134.42,134.28,26.55302211]
[1725978038253,3.7216,134.35,134.28,26.55302211]
[1725978038455,3.7216,134.35,134.3,22.92]
[1725978038653,30.371,134.42,134.3,22.92]
[1725978039061,7.451,134.39,134.3,22.92]
[1725978039360,1.2737,134.38,134.3,22.92]
[1725978040057,1.2737,134.38,134.32,22.92]
[1725978040454,1.2737,134.38,134.3,22.92]
[1725978040756,1.2737,134.38,134.28,26.55302211]
[1725978041268,3.7213,134.36,134.28,26.55302211]
[1725978041561,3.7213,134.36,134.31,22.92]
[1725978042550,1.2737,134.38,134.31,22.92]
[1725978042759,1.2737,134.38,134.28,26.55302211]
[1725978042962,3.7214,134.35,134.3,22.92]
[1725978043259,1.2737,134.38,134.3,22.92]
[1725978043467,1.2737,134.38,134.3,26.65426569]
[1725978044062,1.2737,134.38,134.3,22.92]
[1725978044457,3.7214,134.35,134.3,22.92]
[1725978044964,3.7214,134.35,134.31,3.64788124]
[1725978045359,1.2737,134.38,134.31,3.64788124]
[1725978046565,1.2737,134.38,134.3,22.92]
[1725978046765,1.2737,134.38,134.3,26.60091762]
[1725978047862,1.2737,134.38,134.29,3.71778638]
[1725978048163,1.2737,134.38,134.29,3.66564874]
[1725978048463,1.2737,134.38,134.26,22.92]
[1725978048666,1.2737,134.38,134.28,22.92]
[1725978048868,1.2737,134.38,134.29,3.80791002]
[1725978049371,1.2737,134.38,134.28,22.92]